Workbook

Sheet 入力データ1
A1: 1 | B1: =A1+1 -> 2 | C1: =B1+1 -> 3 | D1: 4 | E1: =D1+1 -> 5 | F1: =E1+1 -> 6 | G1: =F1+1 -> 7 | H1: =G1+1 -> 8 | I1: =H1+1 -> 9 | J1: 10 | K1: 11 | L1: 12
B3: ケース 番号 | C3: 曲げモーメント M(kNm) | D3: 軸力 N(kN) | E3: 断面形状 | F3: 断面諸元番号 ipr(i) | G3: 計算種類 ical(i) | H3: 説明欄 | I3: 中立軸 探索範囲 kk1 | J3: 中立軸 探索範囲 kk2 | K3: 軸力作用位置 iflag1 | L3: 中立軸 チェック用 iflag2
B4: 1 | C4: 34.131827 | D4: 69.258272 | E4: 矩形 | F4: 1 | G4: 0 | H4: 常時① | J4: 10
B5: 2 | C5: -24.47264 | D5: 101.04269 | E5: 矩形 | F5: 1 | G5: 0 | H5: 常時② | J5: 10
B6: 3 | C6: 22.93878 | D6: -82.388077 | E6: 矩形 | F6: 1 | G6: 0 | H6: 常時③ | J6: 10
B7: 4 | C7: 8.4932242 | D7: 198.53564 | E7: 矩形 | F7: 1 | G7: 0 | H7: 常時④ | J7: 10
B8: 5 | C8: -1.8841059 | D8: -103.07979 | E8: 矩形 | F8: 2 | G8: 0 | H8: 地震時⑤ | J8: 10

Sheet 入力データ2(矩形)
A1: 1 | B1: =A1+1 -> 2 | C1: =B1+1 -> 3 | D1: 4 | E1: 5 | F1: =E1+1 -> 6 | G1: =F1+1 -> 7 | H1: =G1+1 -> 8 | I1: =H1+1 -> 9 | J1: =I1+1 -> 10 | K1: =J1+1 -> 11 | L1: =K1+1 -> 12 | M1: =L1+1 -> 13 | N1: =M1+1 -> 14
B2: 矩形断面 | I2: 第1段 | K2: 第2段 | M2: 第3段
B3: 通し番号 | C3: 断面諸元番号 | D3: 全高 h_inp(i) (cm) | E3: 断面幅 b_inp(i) (cm) | F3: コン許容 σca(N/mm2) | G3: 鉄筋許容 σsa(N/mm2) | H3: 鉄筋段数 ndan_inp(i) | I3: 被り cv_inp(i,1) (cm) | J3: 鉄筋量 ast_inp(i,1) (cm2) | K3: 被り cv_inp(i,2) (cm) | L3: 鉄筋量 ast_inp(i,2) (cm2) | M3: 被り cv_inp(i,3) (cm) | N3: 鉄筋量 ast_inp(i,3) (cm2)
B4: 1 | C4: 1 | D4: 40 | E4: 100 | F4: 8 | G4: 160 | H4: 2 | I4: 12 | J4: =4*2.865 -> 11.46 | K4: 28 | L4: =4*2.865 -> 11.46 | O4: 常時 4-D19 | P4: ctc250mm
B5: 2 | C5: 2 | D5: 40 | E5: 100 | F5: =F4*1.5 -> 12 | G5: =G4*1.5 -> 240 | H5: 2 | I5: 12 | J5: 11.46 | K5: 28 | L5: =4*2.865 -> 11.46 | O5: 地震時 4-D19 | P5: ctc250mm

Sheet 入力データ2(円形) (hidden)
A1: 1 | B1: =A1+1 -> 2 | C1: =B1+1 -> 3 | D1: 4 | E1: =D1+1 -> 5 | F1: =E1+1 -> 6 | G1: =F1+1 -> 7 | H1: =G1+1 -> 8 | I1: =H1+1 -> 9 | J1: =I1+1 -> 10 | K1: =J1+1 -> 11 | L1: =K1+1 -> 12 | M1: =L1+1 -> 13
B2: 円形断面 | H2: 第1段 | J2: 第2段 | L2: 第3段
B3: 通し番号 | C3: 断面諸元番号 | D3: 半径 rc_inp(i) (cm) | E3: コン許容 σca(N/mm2) | F3: 鉄筋許容 σsa(N/mm2) | G3: 鉄筋段数 ndan_inp(i) | H3: 半径 rs_inp(i,1) (cm) | I3: 鉄筋量 ast_inp(i,1) (cm2) | J3: 被り rs_inp(i,2) (cm) | K3: 鉄筋量 ast_inp(i,2) (cm2) | L3: 被り rs_inp(i,3) (cm) | M3: 鉄筋量 ast_inp(i,3) (cm2)
B4: 1 | C4: 1 | D4: 100 | E4: 8 | F4: 180 | G4: 1 | H4: 85 | I4: 154.84

Sheet 入力データ2(T形) (hidden)
A1: 1 | B1: =A1+1 -> 2 | C1: =B1+1 -> 3 | D1: 4 | E1: 5 | F1: =E1+1 -> 6 | G1: =F1+1 -> 7 | H1: =G1+1 -> 8 | I1: =H1+1 -> 9 | J1: =I1+1 -> 10 | K1: =J1+1 -> 11 | L1: =K1+1 -> 12 | M1: =L1+1 -> 13 | N1: =M1+1 -> 14 | O1: =N1+1 -> 15 | P1: =O1+1 -> 16
B2: T形断面 | K2: 第1段 | M2: 第2段 | O2: 第3段
B3: 通し番号 | C3: 断面諸元番号 | D3: 全高 h_inp(i) (cm) | E3: フランジ幅 b_inp(i) (cm) | F3: フランジ厚 t_inp(i) (cm) | G3: ウェブ幅 bw_inp(i) (cm) | H3: コン許容 σca(N/mm2) | I3: 鉄筋許容 σsa(N/mm2) | J3: 鉄筋段数 ndan_inp(i) | K3: 被り cv_inp(i,1) (cm) | L3: 鉄筋量 ast_inp(i,1) (cm2) | M3: 被り cv_inp(i,2) (cm) | N3: 鉄筋量 ast_inp(i,2) (cm2) | O3: 被り cv_inp(i,3) (cm) | P3: 鉄筋量 ast_inp(i,3) (cm2)
B4: 1 | C4: 1 | D4: 30 | E4: 100 | F4: 10 | G4: 50 | H4: 8 | I4: 180 | J4: 2 | K4: 6 | L4: 9.95 | M4: 24 | N4: 16.3

Sheet 応力度
B2: ケース番号 | C2: 説明欄 | D2: 断面形状 | E2: 計算種類 | F2: 断面諸元番号 | G2: mf(kNm) | H2: nf(kN) | I2: x(cm) | J2: σc(N/mm2) | K2: σs(N/mm2) | L2: σs'(N/mm2) | M2: σca(N/mm2) | N2: σsa(N/mm2) | O2: 照査値σc/σca | P2: 照査値σs/σsa | Q2: 判定(σc) | R2: 判定(σs) | S2: 最外引張鉄筋量(cm2) | T2: 最外圧縮鉄筋量(cm2) | U2: 繰り返し数it | V2: σc1(N/mm2)
B3: 1 | C3: 常時① | D3: 矩形 | E3: 0 | F3: 1 | G3: 34.131827 | H3: 69.258272 | I3: 10.54229903 | J3: 3.167079562 | K3: 78.66869611 | L3: 6.568759235 | M3: 8 | N3: 160 | O3: 0.3958849452 | P3: 0.4916793507 | Q3: OK | R3: OK | U3: 1
B4: 2 | C4: 常時② | D4: 矩形 | E4: 0 | F4: 1 | G4: -24.47264 | H4: 101.04269 | I4: 13.35512877 | J4: 2.034301632 | K4: 33.46139822 | L4: -3.096271897 | M4: 8 | N4: 160 | O4: 0.254287704 | P4: 0.2091337388 | Q4: OK | R4: OK | U4: 1
B5: 3 | C5: 常時③ | D5: 矩形 | E5: 0 | F5: 1 | G5: 22.93878 | H5: -82.388077 | I5: 6.77431941 | J5: 2.477868055 | K5: 116.4569443 | L5: 28.67124994 | M5: 8 | N5: 160 | O5: 0.3097335069 | P5: 0.7278559018 | Q5: OK | R5: OK | U5: 1
B6: 4 | C6: 常時④ | D6: 矩形 | E6: 0 | F6: 1 | G6: 8.4932242 | H6: 198.53564 | I6: 49.88472939 | J6: 0.7629333123 | K6: -5.020551164 | L6: -8.691093176 | M6: 8 | N6: 160 | O6: 0.09536666404 | P6: -0.03137844478 | Q6: OK | R6: － | U6: 1
B7: 5 | C7: 地震時⑤ | D7: 矩形 | E7: 0 | F7: 2 | G7: -1.8841059 | H7: -103.07979 | I7: -15.01451635 | J7: -0.3051578232 | K7: 55.24917803 | L7: 34.69828211 | M7: 12 | N7: 240 | O7: -0.0254298186 | P7: 0.2302049085 | Q7: － | R7: OK | U7: 1 | V7: -0.1694486964

Sheet 市販ソフトとの比較
Z1: ESによる算出
B2: ケース番号 | C2: 説明欄 | D2: 断面形状 | E2: 計算種類 | F2: 断面諸元番号 | G2: mf(kNm) | H2: nf(kN) | I2: x(cm) | J2: σc(N/mm2) | K2: σs(N/mm2) | L2: σs'(N/mm2) | M2: σca(N/mm2) | N2: σsa(N/mm2) | O2: 照査値σc/σca | P2: 照査値σs/σsa | Q2: 判定(σc) | R2: 判定(σs) | S2: 最外引張鉄筋量(cm2) | T2: 最外圧縮鉄筋量(cm2) | U2: 繰り返し数it | V2: σc1(N/mm2) | Z2: σc (N/mm2) | AA2: σs (N/mm2) | AB2: 照査値σc/σca | AC2: 照査値σs/σsa | AD2: 比 σc | AE2: 比 σs | AF2: 比 σc/σca | AG2: 比 σs/σsa
B3: =応力度!B3 -> 1 | C3: =応力度!C3 -> 常時① | D3: =応力度!D3 -> 矩形 | E3: =応力度!E3 -> 0 | F3: =応力度!F3 -> 1 | G3: =応力度!G3 -> 34.131827 | H3: =応力度!H3 -> 69.258272 | I3: =応力度!I3 -> 10.54229903 | J3: =応力度!J3 -> 3.167079562 | K3: =応力度!K3 -> 78.66869611 | L3: =応力度!L3 -> 6.568759235 | M3: =応力度!M3 -> 8 | N3: =応力度!N3 -> 160 | O3: =応力度!O3 -> 0.3958849452 | P3: =応力度!P3 -> 0.4916793507 | Q3: =応力度!Q3 -> OK | R3: =応力度!R3 -> OK | S3: =応力度!S3 -> 0 | T3: =応力度!T3 -> 0 | U3: =応力度!U3 -> 1 | V3: =応力度!V3 -> 0 | X3: 圧縮軸力/正曲げ | Z3: =AB3*M3 -> 3.167092201 | AA3: =AC3*N3 -> 78.66955953 | AB3: 0.3958865251 | AC3: 0.4916847471 | AD3: =J3/Z3 -> 0.9999960093 | AE3: 0.9999890247 | AF3: =O3/AB3 -> 0.9999960093 | AG3: 0.9999890247
B4: =応力度!B4 -> 2 | C4: =応力度!C4 -> 常時② | D4: =応力度!D4 -> 矩形 | E4: =応力度!E4 -> 0 | F4: =応力度!F4 -> 1 | G4: =応力度!G4 -> -24.47264 | H4: =応力度!H4 -> 101.04269 | I4: =応力度!I4 -> 13.35512877 | J4: =応力度!J4 -> 2.034301632 | K4: =応力度!K4 -> 33.46139822 | L4: =応力度!L4 -> -3.096271897 | M4: =応力度!M4 -> 8 | N4: =応力度!N4 -> 160 | O4: =応力度!O4 -> 0.254287704 | P4: =応力度!P4 -> 0.2091337388 | Q4: =応力度!Q4 -> OK | R4: =応力度!R4 -> OK | S4: =応力度!S4 -> 0 | T4: =応力度!T4 -> 0 | U4: =応力度!U4 -> 1 | V4: =応力度!V4 -> 0 | X4: 圧縮軸力/負曲げ | Z4: =AB4*M4 -> 2.034336299 | AA4: =AC4*N4 -> 33.46251455 | AB4: 0.2542920373 | AC4: 0.2091407159 | AD4: 0.9999829593 | AE4: 0.9999666393 | AF4: 0.9999829593 | AG4: 0.9999666393
B5: =応力度!B5 -> 3 | C5: =応力度!C5 -> 常時③ | D5: =応力度!D5 -> 矩形 | E5: =応力度!E5 -> 0 | F5: =応力度!F5 -> 1 | G5: =応力度!G5 -> 22.93878 | H5: =応力度!H5 -> -82.388077 | I5: =応力度!I5 -> 6.77431941 | J5: =応力度!J5 -> 2.477868055 | K5: =応力度!K5 -> 116.4569443 | L5: =応力度!L5 -> 28.67124994 | M5: =応力度!M5 -> 8 | N5: =応力度!N5 -> 160 | O5: =応力度!O5 -> 0.3097335069 | P5: =応力度!P5 -> 0.7278559018 | Q5: =応力度!Q5 -> OK | R5: =応力度!R5 -> OK | S5: =応力度!S5 -> 0 | T5: =応力度!T5 -> 0 | U5: =応力度!U5 -> 1 | V5: =応力度!V5 -> 0 | X5: 引張軸力/正曲げ | Z5: 2.478329037 | AA5: 116.4547518 | AB5: 0.3097911297 | AC5: 0.7278421988 | AD5: 0.9998139947 | AE5: 1.000018827 | AF5: 0.9998139947 | AG5: 1.000018827
B6: =応力度!B6 -> 4 | C6: =応力度!C6 -> 常時④ | D6: =応力度!D6 -> 矩形 | E6: =応力度!E6 -> 0 | F6: =応力度!F6 -> 1 | G6: =応力度!G6 -> 8.4932242 | H6: =応力度!H6 -> 198.53564 | I6: =応力度!I6 -> 49.88472939 | J6: =応力度!J6 -> 0.7629333123 | K6: =応力度!K6 -> -5.020551164 | L6: =応力度!L6 -> -8.691093176 | M6: =応力度!M6 -> 8 | N6: =応力度!N6 -> 160 | O6: =応力度!O6 -> 0.09536666404 | P6: =応力度!P6 -> -0.03137844478 | Q6: =応力度!Q6 -> OK | R6: =応力度!R6 -> － | S6: =応力度!S6 -> 0 | T6: =応力度!T6 -> 0 | U6: =応力度!U6 -> 1 | V6: =応力度!V6 -> 0 | X6: 全断面圧縮 | Z6: 0.7629246102 | AA6: 0 | AB6: 0.09536557628 | AC6: 0 | AD6: =J6/Z6 -> 1.000011406 | AE6: － | AF6: =O6/AB6 -> 1.000011406 | AG6: －
B7: =応力度!B7 -> 5 | C7: =応力度!C7 -> 地震時⑤ | D7: =応力度!D7 -> 矩形 | E7: =応力度!E7 -> 0 | F7: =応力度!F7 -> 2 | G7: =応力度!G7 -> -1.8841059 | H7: =応力度!H7 -> -103.07979 | I7: =応力度!I7 -> -15.01451635 | J7: =応力度!J7 -> -0.3051578232 | K7: =応力度!K7 -> 55.24917803 | L7: =応力度!L7 -> 34.69828211 | M7: =応力度!M7 -> 12 | N7: =応力度!N7 -> 240 | O7: =応力度!O7 -> -0.0254298186 | P7: =応力度!P7 -> 0.2302049085 | Q7: =応力度!Q7 -> － | R7: =応力度!R7 -> OK | S7: =応力度!S7 -> 0 | T7: =応力度!T7 -> 0 | U7: =応力度!U7 -> 1 | V7: =応力度!V7 -> -0.1694486964 | X7: 全断面引張 | Z7: 0 | AA7: 55.24869159 | AB7: 0 | AC7: 0.2302028816 | AD7: － | AE7: =K7/AA7 -> 1.000008804 | AF7: － | AG7: =P7/AC7 -> 1.000008804
AC11: 本マクロ | AE11: 市販ソフト
Z12: ケース番号 | AA12: M (kNm) | AB12: N (kN) | AC12: σc (N/mm2) | AD12: σs (N/mm2) | AE12: σc (N/mm2) | AF12: σs (N/mm2) | AG12: 比 (σc) | AH12: 比 (σs) | AI12: 備考
Z13: =B3 -> 1 | AA13: =G3 -> 34.131827 | AB13: =H3 -> 69.258272 | AC13: =J3 -> 3.167079562 | AD13: =K3 -> 78.66869611 | AE13: =Z3 -> 3.167092201 | AF13: =AA3 -> 78.66955953 | AG13: =AD3 -> 0.9999960093 | AH13: =AE3 -> 0.9999890247 | AI13: =X3 -> 圧縮軸力/正曲げ
Z14: =B4 -> 2 | AA14: =G4 -> -24.47264 | AB14: 101.04269 | AC14: =J4 -> 2.034301632 | AD14: 33.46139822 | AE14: =Z4 -> 2.034336299 | AF14: 33.46251455 | AG14: =AD4 -> 0.9999829593 | AH14: 0.9999666393 | AI14: =X4 -> 圧縮軸力/負曲げ
Z15: 3 | AA15: =G5 -> 22.93878 | AB15: -82.388077 | AC15: =J5 -> 2.477868055 | AD15: 116.4569443 | AE15: =Z5 -> 2.478329037 | AF15: 116.4547518 | AG15: =AD5 -> 0.9998139947 | AH15: 1.000018827 | AI15: 引張軸力/正曲げ
Z16: 4 | AA16: =G6 -> 8.4932242 | AB16: 198.53564 | AC16: =J6 -> 0.7629333123 | AD16: － | AE16: =Z6 -> 0.7629246102 | AF16: 0 | AG16: =AD6 -> 1.000011406 | AH16: － | AI16: 全断面圧縮
Z17: 5 | AA17: =G7 -> -1.8841059 | AB17: -103.07979 | AC17: － | AD17: =K7 -> 55.24917803 | AE17: =Z7 -> 0 | AF17: 55.24869159 | AG17: =AD7 -> － | AH17: 1.000008804 | AI17: 全断面引張

Sheet 解析解との比較
Z1: 解析解による
B2: ケース番号 | C2: 説明欄 | D2: 断面形状 | E2: 計算種類 | F2: 断面諸元番号 | G2: mf(kNm) | H2: nf(kN) | I2: x(cm) | J2: σc(N/mm2) | K2: σs(N/mm2) | L2: σs'(N/mm2) | M2: σca(N/mm2) | N2: σsa(N/mm2) | O2: 照査値σc/σca | P2: 照査値σs/σsa | Q2: 判定(σc) | R2: 判定(σs) | S2: 最外引張鉄筋量(cm2) | T2: 最外圧縮鉄筋量(cm2) | U2: 繰り返し数it | V2: σc1(N/mm2) | Z2: ｘ (cm) | AA2: σc (N/mm2) | AB2: σs (N/mm2) | AC2: 比 (x) | AD2: 比 (σc) | AE2: 比 (σs) | AF2: 備考
B3: =応力度!B3 -> 1 | C3: =応力度!C3 -> 常時① | D3: =応力度!D3 -> 矩形 | E3: =応力度!E3 -> 0 | F3: =応力度!F3 -> 1 | G3: =応力度!G3 -> 34.131827 | H3: =応力度!H3 -> 69.258272 | I3: =応力度!I3 -> 10.54229903 | J3: =応力度!J3 -> 3.167079562 | K3: =応力度!K3 -> 78.66869611 | L3: =応力度!L3 -> 6.568759235 | M3: =応力度!M3 -> 8 | N3: =応力度!N3 -> 160 | O3: =応力度!O3 -> 0.3958849452 | P3: =応力度!P3 -> 0.4916793507 | Q3: =応力度!Q3 -> OK | R3: =応力度!R3 -> OK | S3: =応力度!S3 -> 0 | T3: =応力度!T3 -> 0 | U3: =応力度!U3 -> 1 | V3: =応力度!V3 -> 0 | X3: 圧縮軸力/正曲げ | Z3: 10.54227436 | AA3: 3.167074112 | AB3: 78.66885602 | AC3: =I3/Z3 -> 1.00000234 | AD3: =J3/AA3 -> 1.000001721 | AE3: 0.9999979674 | AF3: マクロ使用
B4: =応力度!B4 -> 2 | C4: =応力度!C4 -> 常時② | D4: =応力度!D4 -> 矩形 | E4: =応力度!E4 -> 0 | F4: =応力度!F4 -> 1 | G4: =応力度!G4 -> -24.47264 | H4: =応力度!H4 -> 101.04269 | I4: =応力度!I4 -> 13.35512877 | J4: =応力度!J4 -> 2.034301632 | K4: =応力度!K4 -> 33.46139822 | L4: =応力度!L4 -> -3.096271897 | M4: =応力度!M4 -> 8 | N4: =応力度!N4 -> 160 | O4: =応力度!O4 -> 0.254287704 | P4: =応力度!P4 -> 0.2091337388 | Q4: =応力度!Q4 -> OK | R4: =応力度!R4 -> OK | S4: =応力度!S4 -> 0 | T4: =応力度!T4 -> 0 | U4: =応力度!U4 -> 1 | V4: =応力度!V4 -> 0 | X4: 圧縮軸力/負曲げ | Z4: 13.35509148 | AA4: 2.034300268 | AB4: 33.4615544 | AC4: =I4/Z4 -> 1.000002792 | AD4: =J4/AA4 -> 1.00000067 | AE4: =K4/AB4 -> 0.9999953324 | AF4: マクロ使用
B5: =応力度!B5 -> 3 | C5: =応力度!C5 -> 常時③ | D5: =応力度!D5 -> 矩形 | E5: =応力度!E5 -> 0 | F5: =応力度!F5 -> 1 | G5: =応力度!G5 -> 22.93878 | H5: =応力度!H5 -> -82.388077 | I5: =応力度!I5 -> 6.77431941 | J5: =応力度!J5 -> 2.477868055 | K5: =応力度!K5 -> 116.4569443 | L5: =応力度!L5 -> 28.67124994 | M5: =応力度!M5 -> 8 | N5: =応力度!N5 -> 160 | O5: =応力度!O5 -> 0.3097335069 | P5: =応力度!P5 -> 0.7278559018 | Q5: =応力度!Q5 -> OK | R5: =応力度!R5 -> OK | S5: =応力度!S5 -> 0 | T5: =応力度!T5 -> 0 | U5: =応力度!U5 -> 1 | V5: =応力度!V5 -> 0 | X5: 引張軸力/正曲げ | Z5: 6.774323884 | AA5: 2.477869961 | AB5: 116.4569324 | AC5: 0.9999993396 | AD5: 0.9999992307 | AE5: 1.000000102 | AF5: マクロ使用
B6: =応力度!B6 -> 4 | C6: =応力度!C6 -> 常時④ | D6: =応力度!D6 -> 矩形 | E6: =応力度!E6 -> 0 | F6: =応力度!F6 -> 1 | G6: =応力度!G6 -> 8.4932242 | H6: =応力度!H6 -> 198.53564 | I6: =応力度!I6 -> 49.88472939 | J6: =応力度!J6 -> 0.7629333123 | K6: =応力度!K6 -> -5.020551164 | L6: =応力度!L6 -> -8.691093176 | M6: =応力度!M6 -> 8 | N6: =応力度!N6 -> 160 | O6: =応力度!O6 -> 0.09536666404 | P6: =応力度!P6 -> -0.03137844478 | Q6: =応力度!Q6 -> OK | R6: =応力度!R6 -> － | S6: =応力度!S6 -> 0 | T6: =応力度!T6 -> 0 | U6: =応力度!U6 -> 1 | V6: =応力度!V6 -> 0 | X6: 全断面圧縮 | Z6: － | AA6: =AM22 -> 0.7629318651 | AB6: － | AC6: － | AD6: =J6/AA6 -> 1.000001897 | AE6: － | AF6: 全断面圧縮の解析式
B7: =応力度!B7 -> 5 | C7: =応力度!C7 -> 地震時⑤ | D7: =応力度!D7 -> 矩形 | E7: =応力度!E7 -> 0 | F7: =応力度!F7 -> 2 | G7: =応力度!G7 -> -1.8841059 | H7: =応力度!H7 -> -103.07979 | I7: =応力度!I7 -> -15.01451635 | J7: =応力度!J7 -> -0.3051578232 | K7: =応力度!K7 -> 55.24917803 | L7: =応力度!L7 -> 34.69828211 | M7: =応力度!M7 -> 12 | N7: =応力度!N7 -> 240 | O7: =応力度!O7 -> -0.0254298186 | P7: =応力度!P7 -> 0.2302049085 | Q7: =応力度!Q7 -> － | R7: =応力度!R7 -> OK | S7: =応力度!S7 -> 0 | T7: =応力度!T7 -> 0 | U7: =応力度!U7 -> 1 | V7: =応力度!V7 -> -0.1694486964 | X7: 全断面引張 | Z7: － | AA7: － | AB7: =AP23 -> 55.24917703 | AC7: － | AD7: － | AE7: =K7/AB7 -> 1.000000018 | AF7: 全断面引張の解析式
AC11: 本マクロ | AF11: 解析解
Z12: ケース番号 | AA12: M (kNm) | AB12: N (kN) | AC12: ｘ (cm) | AD12: σc (N/mm2) | AE12: σs (N/mm2) | AF12: ｘ (cm) | AG12: σc (N/mm2) | AH12: σs (N/mm2) | AI12: 比 (x) | AJ12: 比 (σc) | AK12: 比 (σs) | AL12: 備考
Z13: =B3 -> 1 | AA13: =G3 -> 34.131827 | AB13: =H3 -> 69.258272 | AC13: 10.54229903 | AD13: 3.167079562 | AE13: 78.66869611 | AF13: =Z3 -> 10.54227436 | AG13: =AA3 -> 3.167074112 | AH13: 78.66885602 | AI13: 1.00000234 | AJ13: 1.000001721 | AK13: 0.9999979674 | AL13: =X3 -> 圧縮軸力/正曲げ
Z14: =B4 -> 2 | AA14: =G4 -> -24.47264 | AB14: =H4 -> 101.04269 | AC14: =I4 -> 13.35512877 | AD14: =J4 -> 2.034301632 | AE14: =K4 -> 33.46139822 | AF14: =Z4 -> 13.35509148 | AG14: =AA4 -> 2.034300268 | AH14: =AB4 -> 33.4615544 | AI14: =AC4 -> 1.000002792 | AJ14: =AD4 -> 1.00000067 | AK14: =AE4 -> 0.9999953324 | AL14: =X4 -> 圧縮軸力/負曲げ
Z15: 3 | AA15: 22.93878 | AB15: -82.388077 | AC15: 6.77431941 | AD15: 2.477868055 | AE15: 116.4569443 | AF15: 6.774323884 | AG15: 2.477869961 | AH15: 116.4569324 | AI15: 0.9999993396 | AJ15: 0.9999992307 | AK15: 1.000000102 | AL15: 引張軸力/正曲げ
Z16: 4 | AA16: 8.4932242 | AB16: 198.53564 | AC16: 49.88472939 | AD16: 0.7629333123 | AE16: -5.020551164 | AF16: =Z6 -> － | AG16: =AA6 -> 0.7629318651 | AH16: =AB6 -> － | AI16: =AC6 -> － | AJ16: =AD6 -> 1.000001897 | AK16: =AE6 -> － | AL16: 全断面圧縮
Z17: =B7 -> 5 | AA17: -1.8841059 | AB17: -103.07979 | AC17: -15.01451635 | AD17: -0.3051578232 | AE17: 55.24917803 | AF17: － | AG17: － | AH17: 55.24917703 | AI17: － | AJ17: － | AK17: 1.000000018 | AL17: 全断面引張
Z20: 全断面圧縮・引張 | AA20: isw | AB20: 1
Z21: ケース番号 | AA21: h (cm) | AB21: b (cm) | AC21: d1 (cm) | AD21: d2 (cm) | AE21: As1 (cm2) | AF21: As2 (cm2) | AG21: yc (cm) | AH21: yt (cm) | AI21: Ag (cm2) | AJ21: Ig (cm4) | AK21: M (kNm) | AL21: N (kN) | AM21: σc (N/mm2) | AN21: σt (N/mm2) | AO21: σs' (N/mm2) | AP21: σs (N/mm2)
Z22: 4 | AA22: 40 | AB22: 100 | AC22: 28 | AD22: 12 | AE22: 11.46 | AF22: 11.46 | AG22: =(AB22*AA22^2/2+15*(AE22*AC22+AF22*AD22))/(AB22*AA22+15*(AE22+AF22)) -> 20 | AH22: =AA22-AG22 -> 20 | AI22: =AB22*AA22+15*(AE22+AF22) -> 4343.8 | AJ22: =AB22*(AG22^3+AH22^3)/3+15*(AE22*(AC22-AG22)^2+AF22*(AG22-AD22)^2) -> 555336.5333 | AK22: =G6 -> 8.4932242 | AL22: =H6 -> 198.53564 | AM22: =IF($AB$20=1,(AL22/AI22+(AK22*100+AL22*(AG22-AA22/2))/AJ22*AG22)*10,(AL22/AI22+AK22*100/AJ22*AG22)*10) -> 0.7629318651 | AN22: =IF($AB$20=1,(AL22/AI22-(AK22*100+AL22*(AG22-AA22/2))/AJ22*AH22)*10,(AL22/AI22-AK22*100/AJ22*AH22)*10) -> 0.1511785451 | AO22: =-15*(AM22-AD22/AA22*(AM22-AN22)) -> -8.691088037 | AP22: =-15*(AM22-AC22/AA22*(AM22-AN22)) -> -5.020568117
Z23: 5 | AA23: 40 | AB23: 0 | AC23: 28 | AD23: 12 | AE23: 11.46 | AF23: 11.46 | AG23: =(AB23*AA23^2/2+15*(AE23*AC23+AF23*AD23))/(AB23*AA23+15*(AE23+AF23)) -> 20 | AH23: =AA23-AG23 -> 20 | AI23: =AB23*AA23+15*(AE23+AF23) -> 343.8 | AJ23: =AB23*(AG23^3+AH23^3)/3+15*(AE23*(AC23-AG23)^2+AF23*(AG23-AD23)^2) -> 22003.2 | AK23: =-G7 -> 1.8841059 | AL23: =H7 -> -103.07979 | AM23: =IF($AB$20=1,(AL23/AI23+(AK23*100+AL23*(AG23-AA23/2))/AJ23*AG23)*10,(AL23/AI23+AK23*100/AJ23*AG23)*10) -> -1.285674247 | AN23: =IF($AB$20=1,(AL23/AI23-(AK23*100+AL23*(AG23-AA23/2))/AJ23*AH23)*10,(AL23/AI23-AK23*100/AJ23*AH23)*10) -> -4.710823135 | AO23: =-15*(AM23-AD23/AA23*(AM23-AN23)) -> 34.6982837 | AP23: =-15*(AM23-AC23/AA23*(AM23-AN23)) -> 55.24917703

Sheet 中立軸計算
B2: ケース番号 | C2: 1 | D2: 2 | E2: 3 | F2: 4 | G2: 5
B3: nrep | C3: 23 | D3: 22 | E3: 23 | F3: 20 | G3: 22
B4: 以下、xj(icase,jc) | C4: 158 | D4: 158 | E4: 158 | F4: 158 | G4: 158
C5: 37 | D5: 37 | E5: 37 | F5: 37 | G5: 37
C6: -23.5 | D6: -23.5 | E6: -23.5 | F6: 97.5 | G6: -23.5
C7: 6.75 | D7: 6.75 | E7: 6.75 | F7: 67.25 | G7: 6.75
C8: 21.875 | D8: 21.875 | E8: 21.875 | F8: 52.125 | G8: -8.375
C9: 14.3125 | D9: 14.3125 | E9: 14.3125 | F9: 44.5625 | G9: -15.9375
C10: 10.53125 | D10: 10.53125 | E10: 10.53125 | F10: 48.34375 | G10: -12.15625
C11: 12.421875 | D11: 12.421875 | E11: 8.640625 | F11: 50.234375 | G11: -14.046875
C12: 11.4765625 | D12: 13.3671875 | E12: 7.6953125 | F12: 49.2890625 | G12: -14.9921875
C13: 11.00390625 | D13: 12.89453125 | E13: 7.22265625 | F13: 49.76171875 | G13: -15.46484375
C14: 10.76757812 | D14: 13.13085938 | E14: 6.986328125 | F14: 49.99804688 | G14: -15.22851562
C15: 10.64941406 | D15: 13.24902344 | E15: 6.868164062 | F15: 49.87988281 | G15: -15.11035156
C16: 10.59033203 | D16: 13.30810547 | E16: 6.809082031 | F16: 49.93896484 | G16: -15.05126953
C17: 10.56079102 | D17: 13.33764648 | E17: 6.779541016 | F17: 49.90942383 | G17: -15.02172852
C18: 10.54602051 | D18: 13.35241699 | E18: 6.764770508 | F18: 49.89465332 | G18: -15.00695801
C19: 10.53863525 | D19: 13.35980225 | E19: 6.772155762 | F19: 49.88726807 | G19: -15.01434326
C20: 10.54232788 | D20: 13.35610962 | E20: 6.775848389 | F20: 49.88357544 | G20: -15.01803589
C21: 10.54048157 | D21: 13.35426331 | E21: 6.774002075 | F21: 49.88542175 | G21: -15.01618958
C22: 10.54140472 | D22: 13.35518646 | E22: 6.774925232 | F22: 49.8844986 | G22: -15.01526642
C23: 10.5418663 | D23: 13.35472488 | E23: 6.774463654 | F23: 49.88496017 | G23: -15.01480484
C24: 10.54209709 | D24: 13.35495567 | E24: 6.774232864 | G24: -15.01457405
C25: 10.54221249 | D25: 13.35507107 | E25: 6.774348259 | G25: -15.01445866
C26: 10.54227018 | E26: 6.774290562

Sheet チェック用
B2: 1 (X) | C2: 1 (FX) | D2: 2 (X) | E2: 2 (FX) | F2: 3 (X) | G2: 3 (FX) | H2: 4 (X) | I2: 4 (FX) | J2: 5 (X) | K2: 5 (FX)
B3: -84 | C3: -123562933.7 | D3: -84 | E3: -89725676.29 | F3: -84 | G3: -80205265.33 | H3: -84 | I3: -34736112.39 | J3: -84 | K3: -4468573.092
B4: -83.516 | C4: -122994982.8 | D4: -83.516 | E4: -89318453.52 | F4: -83.516 | G4: -79823565.87 | H4: -83.516 | I4: -34594785.81 | J4: -83.516 | K4: -4437221.721
B5: -83.032 | C5: -122427031.9 | D5: -83.032 | E5: -88911230.75 | F5: -83.032 | G5: -79441866.4 | H5: -83.032 | I5: -34453459.24 | J5: -83.032 | K5: -4405870.349
B6: -82.548 | C6: -121859081.1 | D6: -82.548 | E6: -88504007.97 | F6: -82.548 | G6: -79060166.94 | H6: -82.548 | I6: -34312132.67 | J6: -82.548 | K6: -4374518.978
B7: -82.064 | C7: -121291130.2 | D7: -82.064 | E7: -88096785.2 | F7: -82.064 | G7: -78678467.47 | H7: -82.064 | I7: -34170806.1 | J7: -82.064 | K7: -4343167.606
B8: -81.58 | C8: -120723179.3 | D8: -81.58 | E8: -87689562.43 | F8: -81.58 | G8: -78296768.01 | H8: -81.58 | I8: -34029479.53 | J8: -81.58 | K8: -4311816.235
B9: -81.096 | C9: -120155228.5 | D9: -81.096 | E9: -87282339.66 | F9: -81.096 | G9: -77915068.55 | H9: -81.096 | I9: -33888152.96 | J9: -81.096 | K9: -4280464.864
B10: -80.612 | C10: -119587277.6 | D10: -80.612 | E10: -86875116.89 | F10: -80.612 | G10: -77533369.08 | H10: -80.612 | I10: -33746826.39 | J10: -80.612 | K10: -4249113.492
B11: -80.128 | C11: -119019326.7 | D11: -80.128 | E11: -86467894.12 | F11: -80.128 | G11: -77151669.62 | H11: -80.128 | I11: -33605499.82 | J11: -80.128 | K11: -4217762.121
B12: -79.644 | C12: -118451375.8 | D12: -79.644 | E12: -86060671.34 | F12: -79.644 | G12: -76769970.15 | H12: -79.644 | I12: -33464173.24 | J12: -79.644 | K12: -4186410.749
B13: -79.16 | C13: -117883425 | D13: -79.16 | E13: -85653448.57 | F13: -79.16 | G13: -76388270.69 | H13: -79.16 | I13: -33322846.67 | J13: -79.16 | K13: -4155059.378
B14: -78.676 | C14: -117315474.1 | D14: -78.676 | E14: -85246225.8 | F14: -78.676 | G14: -76006571.22 | H14: -78.676 | I14: -33181520.1 | J14: -78.676 | K14: -4123708.006
B15: -78.192 | C15: -116747523.2 | D15: -78.192 | E15: -84839003.03 | F15: -78.192 | G15: -75624871.76 | H15: -78.192 | I15: -33040193.53 | J15: -78.192 | K15: -4092356.635
B16: -77.708 | C16: -116179572.4 | D16: -77.708 | E16: -84431780.26 | F16: -77.708 | G16: -75243172.3 | H16: -77.708 | I16: -32898866.96 | J16: -77.708 | K16: -4061005.263
B17: -77.224 | C17: -115611621.5 | D17: -77.224 | E17: -84024557.48 | F17: -77.224 | G17: -74861472.83 | H17: -77.224 | I17: -32757540.39 | J17: -77.224 | K17: -4029653.892
B18: -76.74 | C18: -115043670.6 | D18: -76.74 | E18: -83617334.71 | F18: -76.74 | G18: -74479773.37 | H18: -76.74 | I18: -32616213.82 | J18: -76.74 | K18: -3998302.521
B19: -76.256 | C19: -114475719.8 | D19: -76.256 | E19: -83210111.94 | F19: -76.256 | G19: -74098073.9 | H19: -76.256 | I19: -32474887.25 | J19: -76.256 | K19: -3966951.149
B20: -75.772 | C20: -113907768.9 | D20: -75.772 | E20: -82802889.17 | F20: -75.772 | G20: -73716374.44 | H20: -75.772 | I20: -32333560.67 | J20: -75.772 | K20: -3935599.778
B21: -75.288 | C21: -113339818 | D21: -75.288 | E21: -82395666.4 | F21: -75.288 | G21: -73334674.98 | H21: -75.288 | I21: -32192234.1 | J21: -75.288 | K21: -3904248.406
B22: -74.804 | C22: -112771867.1 | D22: -74.804 | E22: -81988443.63 | F22: -74.804 | G22: -72952975.51 | H22: -74.804 | I22: -32050907.53 | J22: -74.804 | K22: -3872897.035
B23: -74.32 | C23: -112203916.3 | D23: -74.32 | E23: -81581220.85 | F23: -74.32 | G23: -72571276.05 | H23: -74.32 | I23: -31909580.96 | J23: -74.32 | K23: -3841545.663
B24: -73.836 | C24: -111635965.4 | D24: -73.836 | E24: -81173998.08 | F24: -73.836 | G24: -72189576.58 | H24: -73.836 | I24: -31768254.39 | J24: -73.836 | K24: -3810194.292
B25: -73.352 | C25: -111068014.5 | D25: -73.352 | E25: -80766775.31 | F25: -73.352 | G25: -71807877.12 | H25: -73.352 | I25: -31626927.82 | J25: -73.352 | K25: -3778842.92
B26: -72.868 | C26: -110500063.7 | D26: -72.868 | E26: -80359552.54 | F26: -72.868 | G26: -71426177.66 | H26: -72.868 | I26: -31485601.25 | J26: -72.868 | K26: -3747491.549
B27: -72.384 | C27: -109932112.8 | D27: -72.384 | E27: -79952329.77 | F27: -72.384 | G27: -71044478.19 | H27: -72.384 | I27: -31344274.68 | J27: -72.384 | K27: -3716140.177
B28: -71.9 | C28: -109364161.9 | D28: -71.9 | E28: -79545106.99 | F28: -71.9 | G28: -70662778.73 | H28: -71.9 | I28: -31202948.1 | J28: -71.9 | K28: -3684788.806
B29: -71.416 | C29: -108796211 | D29: -71.416 | E29: -79137884.22 | F29: -71.416 | G29: -70281079.26 | H29: -71.416 | I29: -31061621.53 | J29: -71.416 | K29: -3653437.435
B30: -70.932 | C30: -108228260.2 | D30: -70.932 | E30: -78730661.45 | F30: -70.932 | G30: -69899379.8 | H30: -70.932 | I30: -30920294.96 | J30: -70.932 | K30: -3622086.063
B31: -70.448 | C31: -107660309.3 | D31: -70.448 | E31: -78323438.68 | F31: -70.448 | G31: -69517680.34 | H31: -70.448 | I31: -30778968.39 | J31: -70.448 | K31: -3590734.692
B32: -69.964 | C32: -107092358.4 | D32: -69.964 | E32: -77916215.91 | F32: -69.964 | G32: -69135980.87 | H32: -69.964 | I32: -30637641.82 | J32: -69.964 | K32: -3559383.32
B33: -69.48 | C33: -106524407.6 | D33: -69.48 | E33: -77508993.14 | F33: -69.48 | G33: -68754281.41 | H33: -69.48 | I33: -30496315.25 | J33: -69.48 | K33: -3528031.949
B34: -68.996 | C34: -105956456.7 | D34: -68.996 | E34: -77101770.36 | F34: -68.996 | G34: -68372581.94 | H34: -68.996 | I34: -30354988.68 | J34: -68.996 | K34: -3496680.577
B35: -68.512 | C35: -105388505.8 | D35: -68.512 | E35: -76694547.59 | F35: -68.512 | G35: -67990882.48 | H35: -68.512 | I35: -30213662.11 | J35: -68.512 | K35: -3465329.206
B36: -68.028 | C36: -104820555 | D36: -68.028 | E36: -76287324.82 | F36: -68.028 | G36: -67609183.01 | H36: -68.028 | I36: -30072335.54 | J36: -68.028 | K36: -3433977.834
B37: -67.544 | C37: -104252604.1 | D37: -67.544 | E37: -75880102.05 | F37: -67.544 | G37: -67227483.55 | H37: -67.544 | I37: -29931008.96 | J37: -67.544 | K37: -3402626.463
B38: -67.06 | C38: -103684653.2 | D38: -67.06 | E38: -75472879.28 | F38: -67.06 | G38: -66845784.09 | H38: -67.06 | I38: -29789682.39 | J38: -67.06 | K38: -3371275.092
B39: -66.576 | C39: -103116702.3 | D39: -66.576 | E39: -75065656.51 | F39: -66.576 | G39: -66464084.62 | H39: -66.576 | I39: -29648355.82 | J39: -66.576 | K39: -3339923.72
B40: -66.092 | C40: -102548751.5 | D40: -66.092 | E40: -74658433.73 | F40: -66.092 | G40: -66082385.16 | H40: -66.092 | I40: -29507029.25 | J40: -66.092 | K40: -3308572.349
B41: -65.608 | C41: -101980800.6 | D41: -65.608 | E41: -74251210.96 | F41: -65.608 | G41: -65700685.69 | H41: -65.608 | I41: -29365702.68 | J41: -65.608 | K41: -3277220.977
B42: -65.124 | C42: -101412849.7 | D42: -65.124 | E42: -73843988.19 | F42: -65.124 | G42: -65318986.23 | H42: -65.124 | I42: -29224376.11 | J42: -65.124 | K42: -3245869.606
B43: -64.64 | C43: -100844898.9 | D43: -64.64 | E43: -73436765.42 | F43: -64.64 | G43: -64937286.77 | H43: -64.64 | I43: -29083049.54 | J43: -64.64 | K43: -3214518.234
B44: -64.156 | C44: -100276948 | D44: -64.156 | E44: -73029542.65 | F44: -64.156 | G44: -64555587.3 | H44: -64.156 | I44: -28941722.97 | J44: -64.156 | K44: -3183166.863
B45: -63.672 | C45: -99708997.11 | D45: -63.672 | E45: -72622319.87 | F45: -63.672 | G45: -64173887.84 | H45: -63.672 | I45: -28800396.39 | J45: -63.672 | K45: -3151815.491
B46: -63.188 | C46: -99141046.24 | D46: -63.188 | E46: -72215097.1 | F46: -63.188 | G46: -63792188.37 | H46: -63.188 | I46: -28659069.82 | J46: -63.188 | K46: -3120464.12
B47: -62.704 | C47: -98573095.37 | D47: -62.704 | E47: -71807874.33 | F47: -62.704 | G47: -63410488.91 | H47: -62.704 | I47: -28517743.25 | J47: -62.704 | K47: -3089112.749
B48: -62.22 | C48: -98005144.5 | D48: -62.22 | E48: -71400651.56 | F48: -62.22 | G48: -63028789.45 | H48: -62.22 | I48: -28376416.68 | J48: -62.22 | K48: -3057761.377
B49: -61.736 | C49: -97437193.63 | D49: -61.736 | E49: -70993428.79 | F49: -61.736 | G49: -62647089.98 | H49: -61.736 | I49: -28235090.11 | J49: -61.736 | K49: -3026410.006
B50: -61.252 | C50: -96869242.76 | D50: -61.252 | E50: -70586206.02 | F50: -61.252 | G50: -62265390.52 | H50: -61.252 | I50: -28093763.54 | J50: -61.252 | K50: -2995058.634
B51: -60.768 | C51: -96301291.89 | D51: -60.768 | E51: -70178983.24 | F51: -60.768 | G51: -61883691.05 | H51: -60.768 | I51: -27952436.97 | J51: -60.768 | K51: -2963707.263
B52: -60.284 | C52: -95733341.02 | D52: -60.284 | E52: -69771760.47 | F52: -60.284 | G52: -61501991.59 | H52: -60.284 | I52: -27811110.4 | J52: -60.284 | K52: -2932355.891
B53: -59.8 | C53: -95165390.15 | D53: -59.8 | E53: -69364537.7 | F53: -59.8 | G53: -61120292.12 | H53: -59.8 | I53: -27669783.82 | J53: -59.8 | K53: -2901004.52
B54: -59.316 | C54: -94597439.28 | D54: -59.316 | E54: -68957314.93 | F54: -59.316 | G54: -60738592.66 | H54: -59.316 | I54: -27528457.25 | J54: -59.316 | K54: -2869653.148
B55: -58.832 | C55: -94029488.41 | D55: -58.832 | E55: -68550092.16 | F55: -58.832 | G55: -60356893.2 | H55: -58.832 | I55: -27387130.68 | J55: -58.832 | K55: -2838301.777
B56: -58.348 | C56: -93461537.54 | D56: -58.348 | E56: -68142869.38 | F56: -58.348 | G56: -59975193.73 | H56: -58.348 | I56: -27245804.11 | J56: -58.348 | K56: -2806950.406
B57: -57.864 | C57: -92893586.67 | D57: -57.864 | E57: -67735646.61 | F57: -57.864 | G57: -59593494.27 | H57: -57.864 | I57: -27104477.54 | J57: -57.864 | K57: -2775599.034
B58: -57.38 | C58: -92325635.8 | D58: -57.38 | E58: -67328423.84 | F58: -57.38 | G58: -59211794.8 | H58: -57.38 | I58: -26963150.97 | J58: -57.38 | K58: -2744247.663
B59: -56.896 | C59: -91757684.92 | D59: -56.896 | E59: -66921201.07 | F59: -56.896 | G59: -58830095.34 | H59: -56.896 | I59: -26821824.4 | J59: -56.896 | K59: -2712896.291
B60: -56.412 | C60: -91189734.05 | D60: -56.412 | E60: -66513978.3 | F60: -56.412 | G60: -58448395.88 | H60: -56.412 | I60: -26680497.83 | J60: -56.412 | K60: -2681544.92
B61: -55.928 | C61: -90621783.18 | D61: -55.928 | E61: -66106755.53 | F61: -55.928 | G61: -58066696.41 | H61: -55.928 | I61: -26539171.25 | J61: -55.928 | K61: -2650193.548
B62: -55.444 | C62: -90053832.31 | D62: -55.444 | E62: -65699532.75 | F62: -55.444 | G62: -57684996.95 | H62: -55.444 | I62: -26397844.68 | J62: -55.444 | K62: -2618842.177
B63: -54.96 | C63: -89485881.44 | D63: -54.96 | E63: -65292309.98 | F63: -54.96 | G63: -57303297.48 | H63: -54.96 | I63: -26256518.11 | J63: -54.96 | K63: -2587490.805
B64: -54.476 | C64: -88917930.57 | D64: -54.476 | E64: -64885087.21 | F64: -54.476 | G64: -56921598.02 | H64: -54.476 | I64: -26115191.54 | J64: -54.476 | K64: -2556139.434
B65: -53.992 | C65: -88349979.7 | D65: -53.992 | E65: -64477864.44 | F65: -53.992 | G65: -56539898.56 | H65: -53.992 | I65: -25973864.97 | J65: -53.992 | K65: -2524788.062
B66: -53.508 | C66: -87782028.83 | D66: -53.508 | E66: -64070641.67 | F66: -53.508 | G66: -56158199.09 | H66: -53.508 | I66: -25832538.4 | J66: -53.508 | K66: -2493436.691
B67: -53.024 | C67: -87214077.96 | D67: -53.024 | E67: -63663418.89 | F67: -53.024 | G67: -55776499.63 | H67: -53.024 | I67: -25691211.83 | J67: -53.024 | K67: -2462085.32
B68: -52.54 | C68: -86646127.09 | D68: -52.54 | E68: -63256196.12 | F68: -52.54 | G68: -55394800.16 | H68: -52.54 | I68: -25549885.26 | J68: -52.54 | K68: -2430733.948
B69: -52.056 | C69: -86078176.22 | D69: -52.056 | E69: -62848973.35 | F69: -52.056 | G69: -55013100.7 | H69: -52.056 | I69: -25408558.68 | J69: -52.056 | K69: -2399382.577
B70: -51.572 | C70: -85510225.35 | D70: -51.572 | E70: -62441750.58 | F70: -51.572 | G70: -54631401.24 | H70: -51.572 | I70: -25267232.11 | J70: -51.572 | K70: -2368031.205
B71: -51.088 | C71: -84942274.48 | D71: -51.088 | E71: -62034527.81 | F71: -51.088 | G71: -54249701.77 | H71: -51.088 | I71: -25125905.54 | J71: -51.088 | K71: -2336679.834
B72: -50.604 | C72: -84374323.6 | D72: -50.604 | E72: -61627305.04 | F72: -50.604 | G72: -53868002.31 | H72: -50.604 | I72: -24984578.97 | J72: -50.604 | K72: -2305328.462
B73: -50.12 | C73: -83806372.73 | D73: -50.12 | E73: -61220082.26 | F73: -50.12 | G73: -53486302.84 | H73: -50.12 | I73: -24843252.4 | J73: -50.12 | K73: -2273977.091
B74: -49.636 | C74: -83238421.86 | D74: -49.636 | E74: -60812859.49 | F74: -49.636 | G74: -53104603.38 | H74: -49.636 | I74: -24701925.83 | J74: -49.636 | K74: -2242625.719
B75: -49.152 | C75: -82670470.99 | D75: -49.152 | E75: -60405636.72 | F75: -49.152 | G75: -52722903.91 | H75: -49.152 | I75: -24560599.26 | J75: -49.152 | K75: -2211274.348
B76: -48.668 | C76: -82102520.12 | D76: -48.668 | E76: -59998413.95 | F76: -48.668 | G76: -52341204.45 | H76: -48.668 | I76: -24419272.69 | J76: -48.668 | K76: -2179922.977
B77: -48.184 | C77: -81534569.25 | D77: -48.184 | E77: -59591191.18 | F77: -48.184 | G77: -51959504.99 | H77: -48.184 | I77: -24277946.11 | J77: -48.184 | K77: -2148571.605
B78: -47.7 | C78: -80966618.38 | D78: -47.7 | E78: -59183968.41 | F78: -47.7 | G78: -51577805.52 | H78: -47.7 | I78: -24136619.54 | J78: -47.7 | K78: -2117220.234
B79: -47.216 | C79: -80398667.51 | D79: -47.216 | E79: -58776745.63 | F79: -47.216 | G79: -51196106.06 | H79: -47.216 | I79: -23995292.97 | J79: -47.216 | K79: -2085868.862
B80: -46.732 | C80: -79830716.64 | D80: -46.732 | E80: -58369522.86 | F80: -46.732 | G80: -50814406.59 | H80: -46.732 | I80: -23853966.4 | J80: -46.732 | K80: -2054517.491
B81: -46.248 | C81: -79262765.77 | D81: -46.248 | E81: -57962300.09 | F81: -46.248 | G81: -50432707.13 | H81: -46.248 | I81: -23712639.83 | J81: -46.248 | K81: -2023166.119
B82: -45.764 | C82: -78694814.9 | D82: -45.764 | E82: -57555077.32 | F82: -45.764 | G82: -50051007.67 | H82: -45.764 | I82: -23571313.26 | J82: -45.764 | K82: -1991814.748
B83: -45.28 | C83: -78126864.03 | D83: -45.28 | E83: -57147854.55 | F83: -45.28 | G83: -49669308.2 | H83: -45.28 | I83: -23429986.69 | J83: -45.28 | K83: -1960463.376
B84: -44.796 | C84: -77558913.16 | D84: -44.796 | E84: -56740631.77 | F84: -44.796 | G84: -49287608.74 | H84: -44.796 | I84: -23288660.12 | J84: -44.796 | K84: -1929112.005
B85: -44.312 | C85: -76990962.29 | D85: -44.312 | E85: -56333409 | F85: -44.312 | G85: -48905909.27 | H85: -44.312 | I85: -23147333.54 | J85: -44.312 | K85: -1897760.634
B86: -43.828 | C86: -76423011.41 | D86: -43.828 | E86: -55926186.23 | F86: -43.828 | G86: -48524209.81 | H86: -43.828 | I86: -23006006.97 | J86: -43.828 | K86: -1866409.262
B87: -43.344 | C87: -75855060.54 | D87: -43.344 | E87: -55518963.46 | F87: -43.344 | G87: -48142510.35 | H87: -43.344 | I87: -22864680.4 | J87: -43.344 | K87: -1835057.891
B88: -42.86 | C88: -75287109.67 | D88: -42.86 | E88: -55111740.69 | F88: -42.86 | G88: -47760810.88 | H88: -42.86 | I88: -22723353.83 | J88: -42.86 | K88: -1803706.519
B89: -42.376 | C89: -74719158.8 | D89: -42.376 | E89: -54704517.92 | F89: -42.376 | G89: -47379111.42 | H89: -42.376 | I89: -22582027.26 | J89: -42.376 | K89: -1772355.148
B90: -41.892 | C90: -74151207.93 | D90: -41.892 | E90: -54297295.14 | F90: -41.892 | G90: -46997411.95 | H90: -41.892 | I90: -22440700.69 | J90: -41.892 | K90: -1741003.776
B91: -41.408 | C91: -73583257.06 | D91: -41.408 | E91: -53890072.37 | F91: -41.408 | G91: -46615712.49 | H91: -41.408 | I91: -22299374.12 | J91: -41.408 | K91: -1709652.405
B92: -40.924 | C92: -73015306.19 | D92: -40.924 | E92: -53482849.6 | F92: -40.924 | G92: -46234013.03 | H92: -40.924 | I92: -22158047.55 | J92: -40.924 | K92: -1678301.033
B93: -40.44 | C93: -72447355.32 | D93: -40.44 | E93: -53075626.83 | F93: -40.44 | G93: -45852313.56 | H93: -40.44 | I93: -22016720.97 | J93: -40.44 | K93: -1646949.662
B94: -39.956 | C94: -71879404.45 | D94: -39.956 | E94: -52668404.06 | F94: -39.956 | G94: -45470614.1 | H94: -39.956 | I94: -21875394.4 | J94: -39.956 | K94: -1615598.291
B95: -39.472 | C95: -71311453.58 | D95: -39.472 | E95: -52261181.28 | F95: -39.472 | G95: -45088914.63 | H95: -39.472 | I95: -21734067.83 | J95: -39.472 | K95: -1584246.919
B96: -38.988 | C96: -70743502.71 | D96: -38.988 | E96: -51853958.51 | F96: -38.988 | G96: -44707215.17 | H96: -38.988 | I96: -21592741.26 | J96: -38.988 | K96: -1552895.548
B97: -38.504 | C97: -70175551.84 | D97: -38.504 | E97: -51446735.74 | F97: -38.504 | G97: -44325515.7 | H97: -38.504 | I97: -21451414.69 | J97: -38.504 | K97: -1521544.176
B98: -38.02 | C98: -69607600.97 | D98: -38.02 | E98: -51039512.97 | F98: -38.02 | G98: -43943816.24 | H98: -38.02 | I98: -21310088.12 | J98: -38.02 | K98: -1490192.805
B99: -37.536 | C99: -69039650.1 | D99: -37.536 | E99: -50632290.2 | F99: -37.536 | G99: -43562116.78 | H99: -37.536 | I99: -21168761.55 | J99: -37.536 | K99: -1458841.433
B100: -37.052 | C100: -68471699.22 | D100: -37.052 | E100: -50225067.43 | F100: -37.052 | G100: -43180417.31 | H100: -37.052 | I100: -21027434.98 | J100: -37.052 | K100: -1427490.062
B101: -36.568 | C101: -67903748.35 | D101: -36.568 | E101: -49817844.65 | F101: -36.568 | G101: -42798717.85 | H101: -36.568 | I101: -20886108.41 | J101: -36.568 | K101: -1396138.69
B102: -36.084 | C102: -67335797.48 | D102: -36.084 | E102: -49410621.88 | F102: -36.084 | G102: -42417018.38 | H102: -36.084 | I102: -20744781.83 | J102: -36.084 | K102: -1364787.319
B103: -35.6 | C103: -66767846.61 | D103: -35.6 | E103: -49003399.11 | F103: -35.6 | G103: -42035318.92 | H103: -35.6 | I103: -20603455.26 | J103: -35.6 | K103: -1333435.947
B104: -35.116 | C104: -66199895.74 | D104: -35.116 | E104: -48596176.34 | F104: -35.116 | G104: -41653619.46 | H104: -35.116 | I104: -20462128.69 | J104: -35.116 | K104: -1302084.576
B105: -34.632 | C105: -65631944.87 | D105: -34.632 | E105: -48188953.57 | F105: -34.632 | G105: -41271919.99 | H105: -34.632 | I105: -20320802.12 | J105: -34.632 | K105: -1270733.205
B106: -34.148 | C106: -65063994 | D106: -34.148 | E106: -47781730.8 | F106: -34.148 | G106: -40890220.53 | H106: -34.148 | I106: -20179475.55 | J106: -34.148 | K106: -1239381.833
B107: -33.664 | C107: -64496043.13 | D107: -33.664 | E107: -47374508.02 | F107: -33.664 | G107: -40508521.06 | H107: -33.664 | I107: -20038148.98 | J107: -33.664 | K107: -1208030.462
B108: -33.18 | C108: -63928092.26 | D108: -33.18 | E108: -46967285.25 | F108: -33.18 | G108: -40126821.6 | H108: -33.18 | I108: -19896822.41 | J108: -33.18 | K108: -1176679.09
B109: -32.696 | C109: -63360141.39 | D109: -32.696 | E109: -46560062.48 | F109: -32.696 | G109: -39745122.14 | H109: -32.696 | I109: -19755495.84 | J109: -32.696 | K109: -1145327.719
B110: -32.212 | C110: -62792190.52 | D110: -32.212 | E110: -46152839.71 | F110: -32.212 | G110: -39363422.67 | H110: -32.212 | I110: -19614169.26 | J110: -32.212 | K110: -1113976.347
B111: -31.728 | C111: -62224239.65 | D111: -31.728 | E111: -45745616.94 | F111: -31.728 | G111: -38981723.21 | H111: -31.728 | I111: -19472842.69 | J111: -31.728 | K111: -1082624.976
B112: -31.244 | C112: -61656288.78 | D112: -31.244 | E112: -45338394.16 | F112: -31.244 | G112: -38600023.74 | H112: -31.244 | I112: -19331516.12 | J112: -31.244 | K112: -1051273.604
B113: -30.76 | C113: -61088337.9 | D113: -30.76 | E113: -44931171.39 | F113: -30.76 | G113: -38218324.28 | H113: -30.76 | I113: -19190189.55 | J113: -30.76 | K113: -1019922.233
B114: -30.276 | C114: -60520387.03 | D114: -30.276 | E114: -44523948.62 | F114: -30.276 | G114: -37836624.81 | H114: -30.276 | I114: -19048862.98 | J114: -30.276 | K114: -988570.8616
B115: -29.792 | C115: -59952436.16 | D115: -29.792 | E115: -44116725.85 | F115: -29.792 | G115: -37454925.35 | H115: -29.792 | I115: -18907536.41 | J115: -29.792 | K115: -957219.4901
B116: -29.308 | C116: -59384485.29 | D116: -29.308 | E116: -43709503.08 | F116: -29.308 | G116: -37073225.89 | H116: -29.308 | I116: -18766209.84 | J116: -29.308 | K116: -925868.1187
B117: -28.824 | C117: -58816534.42 | D117: -28.824 | E117: -43302280.31 | F117: -28.824 | G117: -36691526.42 | H117: -28.824 | I117: -18624883.27 | J117: -28.824 | K117: -894516.7472
B118: -28.34 | C118: -58248583.55 | D118: -28.34 | E118: -42895057.53 | F118: -28.34 | G118: -36309826.96 | H118: -28.34 | I118: -18483556.69 | J118: -28.34 | K118: -863165.3758
B119: -27.856 | C119: -57680632.68 | D119: -27.856 | E119: -42487834.76 | F119: -27.856 | G119: -35928127.49 | H119: -27.856 | I119: -18342230.12 | J119: -27.856 | K119: -831814.0043
B120: -27.372 | C120: -57112681.81 | D120: -27.372 | E120: -42080611.99 | F120: -27.372 | G120: -35546428.03 | H120: -27.372 | I120: -18200903.55 | J120: -27.372 | K120: -800462.6329
B121: -26.888 | C121: -56544730.94 | D121: -26.888 | E121: -41673389.22 | F121: -26.888 | G121: -35164728.57 | H121: -26.888 | I121: -18059576.98 | J121: -26.888 | K121: -769111.2614
B122: -26.404 | C122: -55976780.07 | D122: -26.404 | E122: -41266166.45 | F122: -26.404 | G122: -34783029.1 | H122: -26.404 | I122: -17918250.41 | J122: -26.404 | K122: -737759.89
B123: -25.92 | C123: -55408829.2 | D123: -25.92 | E123: -40858943.67 | F123: -25.92 | G123: -34401329.64 | H123: -25.92 | I123: -17776923.84 | J123: -25.92 | K123: -706408.5185
B124: -25.436 | C124: -54840878.33 | D124: -25.436 | E124: -40451720.9 | F124: -25.436 | G124: -34019630.17 | H124: -25.436 | I124: -17635597.27 | J124: -25.436 | K124: -675057.1471
B125: -24.952 | C125: -54272927.46 | D125: -24.952 | E125: -40044498.13 | F125: -24.952 | G125: -33637930.71 | H125: -24.952 | I125: -17494270.7 | J125: -24.952 | K125: -643705.7756
B126: -24.468 | C126: -53704976.59 | D126: -24.468 | E126: -39637275.36 | F126: -24.468 | G126: -33256231.25 | H126: -24.468 | I126: -17352944.12 | J126: -24.468 | K126: -612354.4042
B127: -23.984 | C127: -53137025.71 | D127: -23.984 | E127: -39230052.59 | F127: -23.984 | G127: -32874531.78 | H127: -23.984 | I127: -17211617.55 | J127: -23.984 | K127: -581003.0327
B128: -23.5 | C128: -52569074.84 | D128: -23.5 | E128: -38822829.82 | F128: -23.5 | G128: -32492832.32 | H128: -23.5 | I128: -17070290.98 | J128: -23.5 | K128: -549651.6613
B129: -23.016 | C129: -52001123.97 | D129: -23.016 | E129: -38415607.04 | F129: -23.016 | G129: -32111132.85 | H129: -23.016 | I129: -16928964.41 | J129: -23.016 | K129: -518300.2899
B130: -22.532 | C130: -51433173.1 | D130: -22.532 | E130: -38008384.27 | F130: -22.532 | G130: -31729433.39 | H130: -22.532 | I130: -16787637.84 | J130: -22.532 | K130: -486948.9184
B131: -22.048 | C131: -50865222.23 | D131: -22.048 | E131: -37601161.5 | F131: -22.048 | G131: -31347733.93 | H131: -22.048 | I131: -16646311.27 | J131: -22.048 | K131: -455597.547
B132: -21.564 | C132: -50297271.36 | D132: -21.564 | E132: -37193938.73 | F132: -21.564 | G132: -30966034.46 | H132: -21.564 | I132: -16504984.7 | J132: -21.564 | K132: -424246.1755
B133: -21.08 | C133: -49729320.49 | D133: -21.08 | E133: -36786715.96 | F133: -21.08 | G133: -30584335 | H133: -21.08 | I133: -16363658.13 | J133: -21.08 | K133: -392894.8041
B134: -20.596 | C134: -49161369.62 | D134: -20.596 | E134: -36379493.19 | F134: -20.596 | G134: -30202635.53 | H134: -20.596 | I134: -16222331.55 | J134: -20.596 | K134: -361543.4326
B135: -20.112 | C135: -48593418.75 | D135: -20.112 | E135: -35972270.41 | F135: -20.112 | G135: -29820936.07 | H135: -20.112 | I135: -16081004.98 | J135: -20.112 | K135: -330192.0612
B136: -19.628 | C136: -48025467.88 | D136: -19.628 | E136: -35565047.64 | F136: -19.628 | G136: -29439236.6 | H136: -19.628 | I136: -15939678.41 | J136: -19.628 | K136: -298840.6897
B137: -19.144 | C137: -47457517.01 | D137: -19.144 | E137: -35157824.87 | F137: -19.144 | G137: -29057537.14 | H137: -19.144 | I137: -15798351.84 | J137: -19.144 | K137: -267489.3183
B138: -18.66 | C138: -46889566.14 | D138: -18.66 | E138: -34750602.1 | F138: -18.66 | G138: -28675837.68 | H138: -18.66 | I138: -15657025.27 | J138: -18.66 | K138: -236137.9468
B139: -18.176 | C139: -46321615.27 | D139: -18.176 | E139: -34343379.33 | F139: -18.176 | G139: -28294138.21 | H139: -18.176 | I139: -15515698.7 | J139: -18.176 | K139: -204786.5754
B140: -17.692 | C140: -45753664.39 | D140: -17.692 | E140: -33936156.55 | F140: -17.692 | G140: -27912438.75 | H140: -17.692 | I140: -15374372.13 | J140: -17.692 | K140: -173435.2039
B141: -17.208 | C141: -45185713.52 | D141: -17.208 | E141: -33528933.78 | F141: -17.208 | G141: -27530739.28 | H141: -17.208 | I141: -15233045.56 | J141: -17.208 | K141: -142083.8325
B142: -16.724 | C142: -44617762.65 | D142: -16.724 | E142: -33121711.01 | F142: -16.724 | G142: -27149039.82 | H142: -16.724 | I142: -15091718.98 | J142: -16.724 | K142: -110732.461
B143: -16.24 | C143: -44049811.78 | D143: -16.24 | E143: -32714488.24 | F143: -16.24 | G143: -26767340.36 | H143: -16.24 | I143: -14950392.41 | J143: -16.24 | K143: -79381.08959
B144: -15.756 | C144: -43481860.91 | D144: -15.756 | E144: -32307265.47 | F144: -15.756 | G144: -26385640.89 | H144: -15.756 | I144: -14809065.84 | J144: -15.756 | K144: -48029.71814
B145: -15.272 | C145: -42913910.04 | D145: -15.272 | E145: -31900042.7 | F145: -15.272 | G145: -26003941.43 | H145: -15.272 | I145: -14667739.27 | J145: -15.272 | K145: -16678.34669
B146: -14.788 | C146: -42345959.17 | D146: -14.788 | E146: -31492819.92 | F146: -14.788 | G146: -25622241.96 | H146: -14.788 | I146: -14526412.7 | J146: -14.788 | K146: 14673.02476
B147: -14.304 | C147: -41778008.3 | D147: -14.304 | E147: -31085597.15 | F147: -14.304 | G147: -25240542.5 | H147: -14.304 | I147: -14385086.13 | J147: -14.304 | K147: 46024.3962
B148: -13.82 | C148: -41210057.43 | D148: -13.82 | E148: -30678374.38 | F148: -13.82 | G148: -24858843.04 | H148: -13.82 | I148: -14243759.56 | J148: -13.82 | K148: 77375.76765
B149: -13.336 | C149: -40642106.56 | D149: -13.336 | E149: -30271151.61 | F149: -13.336 | G149: -24477143.57 | H149: -13.336 | I149: -14102432.99 | J149: -13.336 | K149: 108727.1391
B150: -12.852 | C150: -40074155.69 | D150: -12.852 | E150: -29863928.84 | F150: -12.852 | G150: -24095444.11 | H150: -12.852 | I150: -13961106.41 | J150: -12.852 | K150: 140078.5105
B151: -12.368 | C151: -39506204.82 | D151: -12.368 | E151: -29456706.06 | F151: -12.368 | G151: -23713744.64 | H151: -12.368 | I151: -13819779.84 | J151: -12.368 | K151: 171429.882
B152: -11.884 | C152: -38938253.95 | D152: -11.884 | E152: -29049483.29 | F152: -11.884 | G152: -23332045.18 | H152: -11.884 | I152: -13678453.27 | J152: -11.884 | K152: 202781.2534
B153: -11.4 | C153: -38370303.08 | D153: -11.4 | E153: -28642260.52 | F153: -11.4 | G153: -22950345.72 | H153: -11.4 | I153: -13537126.7 | J153: -11.4 | K153: 234132.6249
B154: -10.916 | C154: -37802352.2 | D154: -10.916 | E154: -28235037.75 | F154: -10.916 | G154: -22568646.25 | H154: -10.916 | I154: -13395800.13 | J154: -10.916 | K154: 265483.9963
B155: -10.432 | C155: -37234401.33 | D155: -10.432 | E155: -27827814.98 | F155: -10.432 | G155: -22186946.79 | H155: -10.432 | I155: -13254473.56 | J155: -10.432 | K155: 296835.3678
B156: -9.948 | C156: -36666450.46 | D156: -9.948 | E156: -27420592.21 | F156: -9.948 | G156: -21805247.32 | H156: -9.948 | I156: -13113146.99 | J156: -9.948 | K156: 328186.7392
B157: -9.464 | C157: -36098499.59 | D157: -9.464 | E157: -27013369.43 | F157: -9.464 | G157: -21423547.86 | H157: -9.464 | I157: -12971820.42 | J157: -9.464 | K157: 359538.1107
B158: -8.98 | C158: -35530548.72 | D158: -8.98 | E158: -26606146.66 | F158: -8.98 | G158: -21041848.39 | H158: -8.98 | I158: -12830493.84 | J158: -8.98 | K158: 390889.4821
B159: -8.496 | C159: -34962597.85 | D159: -8.496 | E159: -26198923.89 | F159: -8.496 | G159: -20660148.93 | H159: -8.496 | I159: -12689167.27 | J159: -8.496 | K159: 422240.8536
B160: -8.012 | C160: -34394646.98 | D160: -8.012 | E160: -25791701.12 | F160: -8.012 | G160: -20278449.47 | H160: -8.012 | I160: -12547840.7 | J160: -8.012 | K160: 453592.225
B161: -7.528 | C161: -33826696.11 | D161: -7.528 | E161: -25384478.35 | F161: -7.528 | G161: -19896750 | H161: -7.528 | I161: -12406514.13 | J161: -7.528 | K161: 484943.5965
B162: -7.044 | C162: -33258745.24 | D162: -7.044 | E162: -24977255.57 | F162: -7.044 | G162: -19515050.54 | H162: -7.044 | I162: -12265187.56 | J162: -7.044 | K162: 516294.9679
B163: -6.56 | C163: -32690794.37 | D163: -6.56 | E163: -24570032.8 | F163: -6.56 | G163: -19133351.07 | H163: -6.56 | I163: -12123860.99 | J163: -6.56 | K163: 547646.3394
B164: -6.076 | C164: -32122843.5 | D164: -6.076 | E164: -24162810.03 | F164: -6.076 | G164: -18751651.61 | H164: -6.076 | I164: -11982534.42 | J164: -6.076 | K164: 578997.7108
B165: -5.592 | C165: -31554892.63 | D165: -5.592 | E165: -23755587.26 | F165: -5.592 | G165: -18369952.15 | H165: -5.592 | I165: -11841207.85 | J165: -5.592 | K165: 610349.0823
B166: -5.108 | C166: -30986941.76 | D166: -5.108 | E166: -23348364.49 | F166: -5.108 | G166: -17988252.68 | H166: -5.108 | I166: -11699881.28 | J166: -5.108 | K166: 641700.4537
B167: -4.624 | C167: -30418990.89 | D167: -4.624 | E167: -22941141.72 | F167: -4.624 | G167: -17606553.22 | H167: -4.624 | I167: -11558554.7 | J167: -4.624 | K167: 673051.8252
B168: -4.14 | C168: -29851040.01 | D168: -4.14 | E168: -22533918.94 | F168: -4.14 | G168: -17224853.75 | H168: -4.14 | I168: -11417228.13 | J168: -4.14 | K168: 704403.1966
B169: -3.656 | C169: -29283089.14 | D169: -3.656 | E169: -22126696.17 | F169: -3.656 | G169: -16843154.29 | H169: -3.656 | I169: -11275901.56 | J169: -3.656 | K169: 735754.568
B170: -3.172 | C170: -28715138.27 | D170: -3.172 | E170: -21719473.4 | F170: -3.172 | G170: -16461454.83 | H170: -3.172 | I170: -11134574.99 | J170: -3.172 | K170: 767105.9395
B171: -2.688 | C171: -28147187.4 | D171: -2.688 | E171: -21312250.63 | F171: -2.688 | G171: -16079755.36 | H171: -2.688 | I171: -10993248.42 | J171: -2.688 | K171: 798457.3109
B172: -2.204 | C172: -27579236.53 | D172: -2.204 | E172: -20905027.86 | F172: -2.204 | G172: -15698055.9 | H172: -2.204 | I172: -10851921.85 | J172: -2.204 | K172: 829808.6824
B173: -1.72 | C173: -27011285.66 | D173: -1.72 | E173: -20497805.09 | F173: -1.72 | G173: -15316356.43 | H173: -1.72 | I173: -10710595.28 | J173: -1.72 | K173: 861160.0538
B174: -1.236 | C174: -26443334.79 | D174: -1.236 | E174: -20090582.31 | F174: -1.236 | G174: -14934656.97 | H174: -1.236 | I174: -10569268.71 | J174: -1.236 | K174: 892511.4253
B175: -0.752 | C175: -25875383.92 | D175: -0.752 | E175: -19683359.54 | F175: -0.752 | G175: -14552957.5 | H175: -0.752 | I175: -10427942.13 | J175: -0.752 | K175: 923862.7967
B176: -0.268 | C176: -25307433.05 | D176: -0.268 | E176: -19276136.77 | F176: -0.268 | G176: -14171258.04 | H176: -0.268 | I176: -10286615.56 | J176: -0.268 | K176: 955214.1682
B177: 0.216 | C177: -24734739.59 | D177: 0.216 | E177: -18867902.3 | F177: 0.216 | G177: -13780377.36 | H177: 0.216 | I177: -10152537.22 | J177: 0.216 | K177: 991797.0411
B178: 0.7 | C178: -24121448.96 | D178: 0.7 | E178: -18450666.55 | F178: 0.7 | G178: -13311759.93 | H178: 0.7 | I178: -10079301.52 | J178: 0.7 | K178: 1072452.795
B179: 1.184 | C179: -23459515.12 | D179: 1.184 | E179: -18021785 | F179: 1.184 | G179: -12752158.22 | H179: 1.184 | I179: -10075930.69 | J179: 1.184 | K179: 1204126.004
B180: 1.668 | C180: -22748152.81 | D180: 1.668 | E180: -17580112.02 | F180: 1.668 | G180: -12102506.35 | H180: 1.668 | I180: -10140173.74 | J180: 1.668 | K180: 1385647.951
B181: 2.152 | C181: -21986576.8 | D181: 2.152 | E181: -17124501.99 | F181: 2.152 | G181: -11363738.43 | H181: 2.152 | I181: -10269779.66 | J181: 2.152 | K181: 1615849.919
B182: 2.636 | C182: -21174001.82 | D182: 2.636 | E182: -16653809.3 | F182: 2.636 | G182: -10536788.58 | H182: 2.636 | I182: -10462497.47 | J182: 2.636 | K182: 1893563.189
B183: 3.12 | C183: -20309642.63 | D183: 3.12 | E183: -16166888.32 | F183: 3.12 | G183: -9622590.917 | H183: 3.12 | I183: -10716076.17 | J183: 3.12 | K183: 2217619.043
B184: 3.604 | C184: -19392713.98 | D184: 3.604 | E184: -15662593.42 | F184: 3.604 | G184: -8622079.548 | H184: 3.604 | I184: -11028264.77 | J184: 3.604 | K184: 2586848.765
B185: 4.088 | C185: -18422430.62 | D185: 4.088 | E185: -15139779 | F185: 4.088 | G185: -7536188.592 | H185: 4.088 | I185: -11396812.26 | J185: 4.088 | K185: 3000083.637
B186: 4.572 | C186: -17398007.3 | D186: 4.572 | E186: -14597299.43 | F186: 4.572 | G186: -6365852.164 | H186: 4.572 | I186: -11819467.66 | J186: 4.572 | K186: 3456154.94
B187: 5.056 | C187: -16318658.77 | D187: 5.056 | E187: -14034009.08 | F187: 5.056 | G187: -5112004.38 | H187: 5.056 | I187: -12293979.97 | J187: 5.056 | K187: 3953893.957
B188: 5.54 | C188: -15183599.78 | D188: 5.54 | E188: -13448762.34 | F188: 5.54 | G188: -3775579.356 | H188: 5.54 | I188: -12818098.2 | J188: 5.54 | K188: 4492131.971
B189: 6.024 | C189: -13992045.09 | D189: 6.024 | E189: -12840413.58 | F189: 6.024 | G189: -2357511.205 | H189: 6.024 | I189: -13389571.34 | J189: 6.024 | K189: 5069700.264
B190: 6.508 | C190: -12743209.43 | D190: 6.508 | E190: -12207817.18 | F190: 6.508 | G190: -858734.0434 | H190: 6.508 | I190: -14006148.41 | J190: 6.508 | K190: 5685430.118
B191: 6.992 | C191: -11436307.56 | D191: 6.992 | E191: -11549827.53 | F191: 6.992 | G191: 719818.0134 | H191: 6.992 | I191: -14665578.41 | J191: 6.992 | K191: 6338152.816
B192: 7.476 | C192: -10070554.24 | D192: 7.476 | E192: -10865299 | F192: 7.476 | G192: 2377210.85 | H192: 7.476 | I192: -15365610.34 | J192: 7.476 | K192: 7026699.639
B193: 7.96 | C193: -8645164.211 | D193: 7.96 | E193: -10153085.97 | F193: 7.96 | G193: 4112510.352 | H193: 7.96 | I193: -16103993.2 | J193: 7.96 | K193: 7749901.871
B194: 8.444 | C194: -7159352.224 | D194: 8.444 | E194: -9412042.824 | F194: 8.444 | G194: 5924782.404 | H194: 8.444 | I194: -16878476.01 | J194: 8.444 | K194: 8506590.793
B195: 8.928 | C195: -5612333.03 | D195: 8.928 | E195: -8641023.932 | F195: 8.928 | G195: 7813092.89 | H195: 8.928 | I195: -17686807.77 | J195: 8.928 | K195: 9295597.688
B196: 9.412 | C196: -4003321.38 | D196: 9.412 | E196: -7838883.679 | F196: 9.412 | G196: 9776507.695 | H196: 9.412 | I196: -18526737.49 | J196: 9.412 | K196: 10115753.84
B197: 9.896 | C197: -2331532.024 | D197: 9.896 | E197: -7004476.441 | F197: 9.896 | G197: 11814092.7 | H197: 9.896 | I197: -19396014.16 | J197: 9.896 | K197: 10965890.53
B198: 10.38 | C198: -596179.7126 | D198: 10.38 | E198: -6136656.599 | F198: 10.38 | G198: 13924913.8 | H198: 10.38 | I198: -20292386.79 | J198: 10.38 | K198: 11844839.03
B199: 10.864 | C199: 1203520.804 | D199: 10.864 | E199: -5234278.532 | F199: 10.864 | G199: 16108036.88 | H199: 10.864 | I199: -21213604.39 | J199: 10.864 | K199: 12751430.64
B200: 11.348 | C200: 3068354.776 | D200: 11.348 | E200: -4296196.617 | F200: 11.348 | G200: 18362527.81 | H200: 11.348 | I200: -22157415.96 | J200: 11.348 | K200: 13684496.64
B201: 11.832 | C201: 4999107.452 | D201: 11.832 | E201: -3321265.235 | F201: 11.832 | G201: 20687452.48 | H201: 11.832 | I201: -23121570.51 | J201: 11.832 | K201: 14642868.3
... 802 more rows
